Workbook

Sheet 60K - old (hidden)
A2: Code | B2: Product Name | C2: Price | D2: Units | E2: Value | F2: Price
B3: 活性滋养系列
A4: 44016971U | B4: 滋养1号洗发乳250ML | C4: 1900-04-19 | D4: 1900-01-08 | E4: =C4*D4 -> 880 | F4: 190
A5: 44016991U | B5: 滋养2号洗发乳250ml | C5: 1900-04-19 | D5: 1900-01-08 | E5: 880 | F5: 190
A6: 44017011U | B6: 滋养3号洗发乳250ml | C6: 1900-04-19 | D6: 1900-01-08 | E6: 880 | F6: 190
A7: 44016951U | B7: 滋养2号洗发乳1000ml | C7: 1900-08-12 | D7: 1900-01-03 | E7: 675
A8: 12112103U | B8: 蛋白护发露200ml | C8: 1900-06-18 | D8: 1900-01-08 | E8: 1,360 | F8: 285
A9: 12122701U | B9: 蛋白护发露750ml | C9: 1900-10-11 | D9: 1900-01-02 | E9: 570
A10: 44015221U | B10: 卡诗滋养护理系列抗干凝养发膜200ml | C10: 1900-08-22 | D10: 1900-01-03 | E10: 705 | F10: 385
A11: 44016071U | B11: 卡诗滋养护理系列抗干凝养发膜500ml | C11: 1901-01-24 | D11: 1900-01-02 | E11: 780
A12: 12112704U | B12: 深度护发发膜粗发用200ml | C12: 1900-08-22 | D12: 1900-01-04 | E12: 940 | F12: 385
A13: 12112402U | B13: 深度护发发膜 细发用200ml | C13: 1900-08-22 | D13: 1900-01-04 | E13: 940 | F13: 385
A14: 12122702U | B14: 深度护发发膜细发用500ml | C14: 1901-01-24 | D14: 1900-01-03 | E14: 1,170
A15: 12122501U | B15: 深度护发发膜粗发用500ml | C15: 1901-01-24 | D15: 1900-01-03 | E15: 1,170
A16: 12122301U | B16: 双重滋养精华乳30x12ml | C16: 1904-07-07 | D16: 1900-01-03 | E16: 4,950
B17: 奥丽顺柔系列
A18: 12121202U | B18: 奥丽顺柔洗发水1000ml | C18: 1900-08-12 | D18: 1900-01-01 | E18: =C18*D18 -> 225
A19: 12111301U | B19: 奥丽顺柔洗发水250ml | C19: 1900-04-19 | D19: 1900-01-08 | E19: 880 | F19: 190
A20: 44017231U | B20: 奥丽顺柔发膜200ML | C20: 1900-08-22 | D20: 1900-01-04 | E20: 940 | F20: 385
A21: 44016151U | B21: 奥丽顺柔发膜500ml | C21: 1901-01-24 | D21: 1900-01-03 | E21: 1,170
A22: 12112701U | B22: 奥丽顺柔液125ml | C22: 1900-06-18 | D22: 1900-01-08 | E22: 1,360 | F22: 285
A23: 44020711U | B23: 奥丽纤柔发膜200ML | C23: 1900-08-22 | D23: 1900-01-03 | E23: 705 | F23: 385
A24: 44020721U | B24: 奥丽纤柔发膜200ML | C24: 1901-01-24 | D24: 1900-01-02 | E24: 780
A25: 44020701U | B25: 奥丽纤柔精华液15x20ML + 15x6ML | C25: 1902-09-01 | D25: 1900-01-01 | E25: 975
A26: 12112703U | B26: 奥丽顺柔深度修复液50ml | C26: 1900-06-18 | D26: 1900-01-04 | E26: 680 | F26: 285
B27: 奥丽恒卷系列
A28: 44017201U | B28: 奥丽恒卷洗发水250ML | C28: 1900-04-19 | D28: 1900-01-06 | E28: =C28*D28 -> 660 | F28: 190
A29: 44017221U | B29: 奥丽恒卷洗发水1000ML | C29: 1900-08-12 | D29: 1900-01-01 | E29: =C29*D29 -> 225
A30: 44018761U | B30: 奥丽恒卷深度发膜 200ml | C30: 1900-08-22 | D30: 1900-01-03 | E30: =C30*D30 -> 705 | F30: 385
A31: 44018771U | B31: 奥丽恒卷深度发膜 500ml | C31: 1901-01-24 | D31: 1900-01-02 | E31: =C31*D31 -> 780
A32: 44015871U | B32: 奥丽恒卷发露100ML | C32: 1900-04-29 | D32: 1900-01-06 | E32: =C32*D32 -> 720 | F32: 210
B33: 特效系列
A34: 12221105U | B34: 油性头皮(双重功能)洗发水1000ml | C34: 1900-08-12 | D34: 1900-01-01 | E34: =C34*D34 -> 225
A35: 12211000U | B35: 油性头皮(双重功能)洗发水250ml | C35: 1900-04-19 | D35: 1900-01-06 | E35: 660 | F35: 190
A36: 12211400U | B36: 卡诗纯净洗发水（油性头皮油性头发）250ml | C36: 1900-04-19 | D36: 1900-01-06 | E36: 660 | F36: 190
A37: 12212000U | B37: 卡诗去头屑洗发液250ml | C37: 1900-04-19 | D37: 1900-01-06 | E37: 660 | F37: 190
A38: 12221104U | B38: 卡诗去头屑洗发液1000ml | C38: 1900-08-12 | D38: 1900-01-01 | E38: 225
A39: 12211600U | B39: 去头屑洗发水（油性头皮油性头发）250ml | C39: 1900-04-19 | D39: 1900-01-06 | E39: 660 | F39: 190
A40: 44022321U | B40: 纤弱发质洗发乳250ml | C40: 1900-04-29 | D40: 1900-01-06 | E40: 720 | F40: 210
A41: 44020571U | B41: 纤弱发质洗发乳1000ml | C41: 1900-08-12 | D41: 1900-01-01 | E41: 225
A42: 44014261U | B42: 卡诗头皮护理系列防脱发护发露6ml x 10 | C42: 1900-11-15 | D42: 1900-01-04 | E42: 1,280 | F42: 520
A43: 44014271U | B43: 卡诗头皮护理系列防脱发护发露6ml x 42 | C43: 1903-01-12 | D43: 1900-01-01 | E43: 1,108 | F43: 1,680
A44: 44020791U | B44: 纤弱发质洗发路125ml | C44: 1900-06-18 | D44: 1900-01-04 | E44: 680 | F44: 285
B45: 头皮舒缓系列
A46: 12411101U | B46: 舒缓丝盈洗发水250ml | C46: 1900-04-19 | D46: 1900-01-06 | E46: =C46*D46 -> 660 | F46: 190
A47: 12421001U | B47: 舒缓滋润洗发乳1000ml | C47: 1900-08-12 | D47: 1900-01-01 | E47: =C47*D47 -> 225
A48: 12411000U | B48: 舒缓滋润洗发乳250ml | C48: 1900-04-19 | D48: 1900-01-06 | E48: =C48*D48 -> 660 | F48: 190
B49: 头皮平衡系列
A50: 44017911U | B50: 卡诗头皮平衡洗发水(干性发质) 250ml | C50: 1900-04-19 | D50: 1900-01-04 | E50: =C50*D50 -> 440 | F50: 190
A51: 44017961U | B51: 卡诗头皮平衡洗发水(混合性发质) 250ml | C51: 1900-04-19 | D51: 1900-01-04 | E51: =C51*D51 -> 440 | F51: 190
A52: 44017971U | B52: 卡诗头皮平衡洗发水(混合性发质) 1L | C52: 1900-08-12 | D52: 1900-01-01 | E52: =C52*D52 -> 225
A53: 44018121U | B53: 卡诗头皮平衡修复乳 15*25ML | C53: 1902-06-18 | D53: 1900-01-01 | E53: =C53*D53 -> 900
B54: 双重强化系列
A55: 44020451U | B55: 双重强化洗发水250ML | C55: 110 | D55: 8 | E55: =C55*D55 -> 880 | F55: 190
A56: 44020471U | B56: 双重强化洗发水1000ML | C56: 225 | D56: 1 | E56: 225
A57: 44018161U | B57: 双重强化护发素200ML | C57: 1900-06-18 | D57: 1900-01-08 | E57: 1,360 | F57: 285
A58: 44018151U | B58: 双重强化护发素750ML | C58: 1900-10-11 | D58: 1900-01-01 | E58: 285
A59: 44017371U | B59: 热能活力乳125ml | C59: 1900-05-24 | D59: 1900-01-08 | E59: 1,160 | F59: 245
A60: 44014982U | B60: 卡诗强化护理系列发芯强化精华乳20ml*30 | C60: 1904-02-08 | D60: 1900-01-01 | E60: 1,500
A61: 12322002U | B61: 卡诗活力胶结物精华液12ml x 30 | C61: 1904-07-07 | D61: 1900-01-02 | E61: 3,300
A62: UF001005 | B62: 染发当天强化护理 | C62: 1900-04-19 | D62: 1900-01-10 | E62: 1,100
A63: UF001004 | B63: 烫发当天强化护理 | C63: 1900-04-14 | D63: 1900-01-20 | E63: 2,100
B64: 丰盈活力系列
A65: 12311201U | B65: 丰盈活力洗发水250ml | C65: 1900-04-19 | D65: 1900-01-04 | E65: =C65*D65 -> 440 | F65: 190
A66: 12312401U | B66: 丰盈活力发膜200ml | C66: 1900-08-22 | D66: 1900-01-03 | E66: =C66*D66 -> 705 | F66: 385
A67: 12322401U | B67: 丰盈活力发膜500ml | C67: 1901-01-24 | D67: 1900-01-02 | E67: =C67*D67 -> 780
B68: 逆时焕发系列
A69: 44012781U | B69: 卡诗强化护理系列逆时焕发洗发水250ml | C69: 1900-04-19 | D69: 1900-01-03 | E69: =C69*D69 -> 330 | F69: 190
A70: 44016141U | B70: 卡诗强化护理系列 活力修复发膜200ml | C70: 1900-08-22 | D70: 1900-01-03 | E70: =C70*D70 -> 705 | F70: 385
A71: 12322302U | B71: 卡诗强化护理系列 活力修复发膜500ml | C71: 1901-01-24 | D71: 1900-01-02 | E71: =C71*D71 -> 780
B72: 绚亮护色系列
A73: 44019241U | B73: 卡诗绚亮护色洗发水 250ml | C73: 1900-04-19 | D73: 1900-01-04 | E73: =C73*D73 -> 440 | F73: 190
A74: 12512001U | B74: 卡诗绚亮护色发露125ml | C74: 1900-06-03 | D74: 1900-01-04 | E74: 620 | F74: 265
A75: 12522002U | B75: 卡诗绚亮护色发露750ml | C75: 1900-10-11 | D75: 1900-01-01 | E75: 285
A76: 12512101U | B76: 卡诗绚亮护色发膜200ml | C76: 1900-08-22 | D76: 1900-01-03 | E76: 705 | F76: 385
A77: 12522100U | B77: 卡诗绚亮护色发膜500ml | C77: 1901-01-24 | D77: 1900-01-02 | E77: 780
A78: 12513101U | B78: 卡诗绚亮护色发乳125ml | C78: 1900-04-29 | D78: 1900-01-04 | E78: 480 | F78: 210
A79: 44017881U | B79: 卡诗绚亮护色精华液 30*20ml | C79: 1904-07-07 | D79: 1900-01-01 | E79: 1,650
A80: 12522200U | B80: 卡诗绚亮护色染后护理乳20ml x15 | C80: 1902-06-18 | D80: 1900-01-01 | E80: 900
B81: 绚亮深度护色系列
A82: 44017831U | B82: 卡诗绚亮深度护色洗发水 250ml | C82: 1900-04-19 | D82: 1900-01-06 | E82: =C82*D82 -> 660 | F82: 190
A83: 44017841U | B83: 卡诗绚亮深度护色洗发水 1000ml | C83: 1900-08-12 | D83: 1900-01-01 | E83: =C83*D83 -> 225
A84: 44017851U | B84: 卡诗绚亮深度护色发膜 200ML | C84: 1900-08-22 | D84: 1900-01-03 | E84: =C84*D84 -> 705 | F84: 385
A85: 44017861U | B85: 卡诗绚亮深度护色发膜 500ml | C85: 1901-01-24 | D85: 1900-01-02 | E85: =C85*D85 -> 780
A86: 44017871U | B86: 卡诗绚亮深度护色液 125ml | C86: 1900-06-18 | D86: 1900-01-06 | E86: =C86*D86 -> 1,020 | F86: 285
B87: 晚间护理
A88: 44018691u | B88: 卡诗晚间臻致护理精华乳 125ml | C88: 1900-06-03 | D88: 1900-01-03 | E88: =C88*D88 -> 465 | F88: 265
A89: 44018701u | B89: 卡诗晚间臻致护理精华液 100ml | C89: 1900-05-24 | D89: 1900-01-03 | E89: =C89*D89 -> 435 | F89: 245
B90: KS TTL | D90: =SUM(D18:D89) -> 1900-08-24 | E90: =SUM(E4:E89) -> 63,158

Sheet 1
A1: 2021年理发店洗发用品控制价
A2: 序号 | B2: 品名 | C2: 申报单价（元） | D2: 数量（个） | E2: 审核单价（元） | F2: 总价（元）
A3: 1 | B3: 卡诗赋活洗发水250ML | C3: 240 | D3: 1 | E3: =C3*0.88 -> 211 | F3: =E3 -> 211
A4: 2 | B4: 卡诗黛丝逸柔洗发水250ML | C4: 240 | D4: 1 | E4: =C4*0.88 -> 211 | F4: =E4 -> 211
A5: 3 | B5: 卡诗黛丝逸柔护发素200ML | C5: 325 | D5: 1 | E5: 286 | F5: 286
A6: 4 | B6: 卡诗滋养润护洗发水2号 250ML | C6: 240 | D6: 1 | E6: 211 | F6: 211
A7: 5 | B7: 卡诗滋养润护蛋白护发露 200ML | C7: 325 | D7: 1 | E7: 286 | F7: 286
A8: 6 | B8: 卡诗滋养润护晚安精华乳 90ML | C8: 480 | D8: 1 | E8: 422 | F8: 422
A9: 7 | B9: 卡诗奥丽柔顺洗发水 250ML | C9: 240 | D9: 1 | E9: 211 | F9: 211
A10: 8 | B10: 卡诗新奥丽柔顺液 100ML | C10: 340 | D10: 1 | E10: 299 | F10: 299
A11: 9 | B11: 卡诗新奥丽柔顺奢护精华霜 200ML | C11: 325 | D11: 1 | E11: 286 | F11: 286
A12: 10 | B12: 卡诗强韧修护洗发水 250ML | C12: 240 | D12: 1 | E12: 211 | F12: 211
A13: 11 | B13: 卡诗强韧修护奢护精华霜 200ML | C13: 325 | D13: 1 | E13: 286 | F13: 286
A14: 12 | B14: 卡诗柔韧芯机洗发水 250ML | C14: 240 | D14: 1 | E14: 211 | F14: 211
A15: 13 | B15: 卡诗柔韧芯机奢护精华乳 200ML | C15: 325 | D15: 1 | E15: 286 | F15: 286
A16: 14 | B16: 卡诗强韧防护乳150ML | C16: 340 | D16: 1 | E16: 299 | F16: 299
A17: 15 | B17: 卡诗新绚色恒护洗发水 250ML | C17: 240 | D17: 1 | E17: 211 | F17: 211
A18: 16 | B18: 卡诗绚色恒护护发素 200ML | C18: 325 | D18: 1 | E18: 286 | F18: 286
A19: 17 | B19: 卡诗耀光凝色晶透洗发水 250ML | C19: 240 | D19: 1 | E19: 211 | F19: 211
A20: 18 | B20: 卡诗耀光凝色奢护精华霜 250ML | C20: 325 | D20: 1 | E20: 286 | F20: 286
A21: 19 | B21: 卡诗黑钻钥源洗发水 250ML | C21: 370 | D21: 1 | E21: 326 | F21: 326
A22: 20 | B22: 卡诗黑钻钥源护发香氛油 100ML | C22: 520 | D22: 1 | E22: 458 | F22: 458
A23: 21 | B23: 卡诗菁纯亮泽经典香氛护发油 100ML | C23: 340 | D23: 1 | E23: 299 | F23: 299
A24: 22 | B24: 卡诗菁纯亮泽玫瑰香氛护发油 100ML | C24: 340 | D24: 1 | E24: 299 | F24: 299
A25: 23 | B25: 卡诗菁纯亮泽洗发水 250ML | C25: 280 | D25: 1 | E25: 246 | F25: 246
A26: 24 | B26: 卡诗菁纯亮泽发膜 200ML | C26: 520 | D26: 1 | E26: 458 | F26: 458
A27: 25 | B27: 卡诗男士纤弱发丝洗发水 250ML | C27: 240 | D27: 1 | E27: 211 | F27: 211
A28: 26 | B28: 卡诗去屑净化洗发水250ML | C28: 240 | D28: 1 | E28: 211 | F28: 211
A29: 27 | B29: 卡诗双重功能洗发水 250ML | C29: 240 | D29: 1 | E29: 211 | F29: 211
A30: 28 | B30: 卡诗头皮系列新舒缓丝盈洗发水 250ML | C30: 240 | D30: 1 | E30: 211 | F30: 211
A31: 29 | B31: 卡诗头皮健发防脱精华液 10*6ML | C31: 580 | D31: 1 | E31: 510 | F31: 510
A32: 30 | B32: 巴黎卡诗防脱发喷雾 125ML | C32: 340 | D32: 1 | E32: 299 | F32: 299
A33: 31 | B33: 卡诗头皮系列根源特护洗发水 250ML | C33: 240 | D33: 1 | E33: 211 | F33: 211
A34: 32 | B34: 卡诗赋源芯丝沁透洗发水 250ML | C34: 240 | D34: 1 | E34: 211 | F34: 211
A35: 33 | B35: 卡诗赋源芯丝盈润洗发水 250ML | C35: 240 | D35: 1 | E35: 211 | F35: 211
A36: 34 | B36: 卡诗赋源芯丝奢护精华霜 200ML | C36: 325 | D36: 1 | E36: 286 | F36: 286
A37: 35 | B37: 卡诗赋活发膜500ML | C37: 680 | D37: 1 | E37: 598 | F37: 598
A38: 36 | B38: 卡诗滋养润护发膜500ML | C38: 680 | D38: 1 | E38: 598 | F38: 598
A39: 37 | B39: 卡诗发芯强化精华乳 20ML | C39: 95 | D39: 1 | E39: 84 | F39: 84
A40: 38 | B40: 卡诗新绚色恒护发膜500ML | C40: 680 | D40: 1 | E40: 598 | F40: 598
A41: 39 | B41: 卡诗耀光凝色防护精华乳 150ML | C41: 240 | D41: 1 | E41: 211 | F41: 211
A42: 40 | B42: 卡诗黑钻钥源发膜(配合卡诗黑钻钥源精华液) 250ML+8mlx8 | C42: 1500 | D42: 1 | E42: 1320 | F42: 1320
A43: 41 | B43: 卡诗黑钻钥源净澈凝露200ML | C43: 480 | D43: 1 | E43: 422 | F43: 422
A44: 42 | B44: 卡诗头皮系列清养基底膜 25MLX30 | C44: 1500 | D44: 1 | E44: 1320 | F44: 1320
A45: 43 | B45: 卡诗胶结物精华液 12ML | C45: 95 | D45: 1 | E45: 84 | F45: 84
A46: 44 | B46: 卡诗绚亮精华液 12ML | C46: 95 | D46: 1 | E46: 84 | F46: 84
A47: 45 | B47: 卡诗绚亮精华液 12ML | C47: 95 | D47: 1 | E47: 84 | F47: 84
A48: 46 | B48: 卡诗赋活精华液 12ML | C48: 95 | D48: 1 | E48: 84 | F48: 84
A49: 47 | B49: 卡诗滋养精华液 12ML | C49: 95 | D49: 1 | E49: 84 | F49: 84
A50: 48 | B50: 卡诗赋源精粹液 12ML | C50: 95 | D50: 1 | E50: 84 | F50: 84
A51: 49 | B51: 卡诗凝色精粹液120ML | C51: 220 | D51: 1 | E51: 194 | F51: 194
A52: 50 | B52: 卡诗滋养精粹液 120ML | C52: 220 | D52: 1 | E52: 194 | F52: 194
A53: 51 | B53: 卡诗强韧精粹液 120ML | C53: 220 | D53: 1 | E53: 194 | F53: 194
A54: 52 | B54: 卡诗绚亮精粹液 120ML | C54: 220 | D54: 1 | E54: 194 | F54: 194
A55: 53 | B55: 卡诗逸柔精粹液 120ML | C55: 220 | D55: 1 | E55: 194 | F55: 194
A56: 54 | B56: 卡诗赋源精粹液 120ML | C56: 220 | D56: 1 | E56: 194 | F56: 194
A57: 55 | B57: 卡诗水光宝盒 | C57: 780 | D57: 1 | E57: 686 | F57: 686
A58: 56 | B58: 卡诗活力宝盒 | C58: 780 | D58: 1 | E58: 686 | F58: 686
A59: 57 | B59: 卡诗臻黑密发精华液 12x6ML | C59: 580 | D59: 1 | E59: 510 | F59: 510
A60: 58 | B60: 卡诗头皮多效舒缓精华液 12*6ML | C60: 580 | D60: 1 | E60: 510 | F60: 510
A61: 59 | B61: 卡诗头皮去屑调理精华液 12*6ML | C61: 580 | D61: 1 | E61: 510 | F61: 510
A62: 60 | B62: 卡诗赋源芯丝头皮防脱安瓶精华液 10x6ML | C62: 580 | D62: 1 | E62: 510 | F62: 510
A63: 61 | B63: 卡诗密集护理小雨衣礼盒 | C63: 1170 | D63: 1 | E63: 1030 | F63: 1030
A64: 62 | B64: 卡诗密集护理双重强化礼盒 | C64: 1170 | D64: 1 | E64: 1030 | F64: 1030
A65: 63 | B65: 卡诗头皮系列海盐清爽洁净霜 500ML | C65: 730 | D65: 1 | E65: 642 | F65: 642
A66: 64 | B66: 卡诗头皮系列舒缓轻盈洁净霜 500ML | C66: 730 | D66: 1 | E66: 642 | F66: 642
A67: 65 | B67: 卡诗头皮系列生姜焕活精萃油 50ML | C67: 695 | D67: 1 | E67: 612 | F67: 612
A68: 66 | B68: 卡诗头皮系列薄荷沁凉精萃油 50ML | C68: 695 | D68: 1 | E68: =C68*0.88 -> 612 | F68: =E68 -> 612
A69: 67 | B69: 卡诗头皮系列檀香木舒缓精萃油 50ML | C69: 695 | D69: 1 | E69: 612 | F69: 612
A70: 68 | B70: 资生堂普盈丝系列染膏 80g | C70: 115 | D70: 1 | E70: 101 | F70: 101
A71: 69 | B71: 资生堂普盈丝系列染发双氧乳 3 1L | C71: 168 | D71: 1 | E71: 148 | F71: 148
A72: 70 | B72: 资生堂普盈丝系列染发双氧乳 4.5 1L | C72: 168 | D72: 1 | E72: 148 | F72: 148
A73: 71 | B73: 资生堂普盈丝系列染发双氧乳 6 1L | C73: 168 | D73: 1 | E73: 148 | F73: 148
A74: 72 | B74: 资生堂普盈丝系列染发双氧乳 9 1L | C74: 168 | D74: 1 | E74: 148 | F74: 148
A75: 73 | B75: 资生堂普盈丝系列染发双氧乳 12 1L | C75: 168 | D75: 1 | E75: 148 | F75: 148
A76: 74 | B76: 资生堂光润水晶热烫液H 400ml | C76: 255 | D76: 1 | E76: 224 | F76: 224
A77: 75 | B77: 资生堂柔亮水晶 热烫液HL 400ml | C77: 255 | D77: 1 | E77: 224 | F77: 224
A78: 76 | B78: 资生堂光润水晶热烫液N 400ml | C78: 255 | D78: 1 | E78: 224 | F78: 224
A79: 77 | B79: 资生堂顺柔光润水晶直烫液 中和乳 400ml | C79: 255 | D79: 1 | E79: 224 | F79: 224
A80: 78 | B80: 资生堂顺柔光润水晶直烫液 中和液 400ml | C80: 255 | D80: 1 | E80: 224 | F80: 224
A81: 79 | B81: 资生堂丝膳坊 塑型系列热烫乳 (抗拒发质)1号剂500ml | C81: 288 | D81: 1 | E81: 253 | F81: 253
A82: 80 | B82: 资生堂丝膳坊 塑型系列热烫乳 (正常发质)1号剂500ml | C82: 288 | D82: 1 | E82: 253 | F82: 253
A83: 81 | B83: 资生堂丝膳坊 塑型系列热烫乳 (受损发质)1号剂500ml | C83: 288 | D83: 1 | E83: 253 | F83: 253
A84: 82 | B84: 资生堂丝膳坊 塑型系列热烫乳(受损性发质)2号通用定型乳500g | C84: 288 | D84: 1 | E84: 253 | F84: 253
A85: 83 | B85: 资生堂丝膳坊 塑型系列热烫乳(抗拒性发质)2号通用定型水500g | C85: 288 | D85: 1 | E85: 253 | F85: 253
A86: 84 | B86: 资生堂冷烫液（正常发质）(100+100)ml | C86: 55 | D86: 1 | E86: 48 | F86: 48
A87: 85 | B87: 资生堂冷烫液（受损发质）(100+100)ml | C87: 55 | D87: 1 | E87: 48 | F87: 48
A88: 86 | B88: 资生堂恒型洗发乳 500ml | C88: 260 | D88: 1 | E88: 229 | F88: 229
A89: 87 | B89: 资生堂染后洗发乳C 700ml | C89: 230 | D89: 1 | E89: 202 | F89: 202
A90: 88 | B90: 资生堂精华霜V 90g（补水） | C90: 155 | D90: 1 | E90: 136 | F90: 136
A91: 89 | B91: 资生堂染前护理液C 700ml | C91: 230 | D91: 1 | E91: 202 | F91: 202
A92: 90 | B92: 资生堂染后修护蜜C1 690ml（染前护理） | C92: 230 | D92: 1 | E92: 202 | F92: 202
A93: 91 | B93: 资生堂染卷后修护蜜CW1 690ml（烫中护理） | C93: 230 | D93: 1 | E93: 202 | F93: 202
A94: 92 | B94: 资生堂染直后修护蜜CS1 690ml（烫中护理） | C94: 230 | D94: 1 | E94: 202 | F94: 202
A95: 93 | B95: 资生堂免洗多效修复喷雾 150ml | C95: 220 | D95: 1 | E95: 194 | F95: 194
A96: 94 | B96: 资生堂护理道 睫毛滋养精华液6g | C96: 130 | D96: 1 | E96: 114 | F96: 114
A97: 95 | B97: 资生堂 秀场造型 丝质喷雾（直发用）150ml | C97: 160 | D97: 1 | E97: 141 | F97: 141
A98: 96 | B98: 资生堂 空气泡沫摩丝195g | C98: 180 | D98: 1 | E98: 158 | F98: 158
A99: 97 | B99: 资生堂 洗发露250ml | C99: 218 | D99: 1 | E99: 192 | F99: 192
A100: 98 | B100: 资生堂 护发素250ml | C100: 278 | D100: 1 | E100: 245 | F100: 245
A101: 99 | B101: 嘉珂 蛋白护发喷雾H.K.P 350ml | C101: 180 | D101: 1 | E101: 158 | F101: 158
A102: 100 | B102: 嘉珂 造型/定型 光泽造型水 150ml | C102: 135 | D102: 1 | E102: 119 | F102: 119
A103: 101 | B103: 嘉珂 染膏去渍露 125ml | C103: 215 | D103: 1 | E103: 189 | F103: 189
A104: 102 | B104: 欧莱雅 菁华修护护发霜 150ml | C104: 119 | D104: 1 | E104: 105 | F104: 105
A105: 103 | B105: 芭图斯 特效去屑 238ml | C105: 85 | D105: 1 | E105: 75 | F105: 75
A106: 104 | B106: 芭图斯 定型喷发胶 420ml | C106: 67 | D106: 1 | E106: 59 | F106: 59
A107: 105 | B107: 丝芬德植萃柔亮滋润修护洗发乳 700ml | C107: 152 | D107: 1 | E107: 134 | F107: 134
A108: 106 | B108: 丝芬德植萃健发去屑止痒洗发乳 700ml | C108: 152 | D108: 1 | E108: 134 | F108: 134
A109: 107 | B109: 丝芬德植萃油脂平衡毛囊清洁乳 700ml | C109: 152 | D109: 1 | E109: 134 | F109: 134
A110: 108 | B110: 丝芬德植萃芯核丝亮丰盈洗发乳 700ml | C110: 152 | D110: 1 | E110: 134 | F110: 134
A111: 109 | B111: 丝芬德植萃柔亮滋润修护润发霜 700ml | C111: 152 | D111: 1 | E111: 134 | F111: 134
A112: 110 | B112: 丝芬德植萃芯核强韧黑钻鱼子酱重组霜 280ml | C112: 86 | D112: 1 | E112: 76 | F112: 76
A113: 111 | B113: 丝芬德植萃柔亮滋润香芬沐浴露 700ml | C113: 118 | D113: 1 | E113: 104 | F113: 104
A114: 112 | B114: 丝芬德植萃芯牛油果酱芬沐浴露 700ml | C114: 118 | D114: 1 | E114: 104 | F114: 104
A115: 113 | B115: 贝拉吉欧头皮调理露 100ml | C115: 398 | D115: 1 | E115: 350 | F115: 350
A116: 114 | B116: ccok P-植物原液蛋白修复洗发乳（染后修复强化适用） 1000ml | C116: 300 | D116: 1 | E116: 264 | F116: 264
A117: 115 | B117: ccok O-植物原液蛋白修复洗发乳（烫后修复强化适用） 1000ml | C117: 300 | D117: 1 | E117: 264 | F117: 264
A118: 116 | B118: ccok G-植物原液蛋白修复洗发乳（极度受损强化发质适用） 1000ml | C118: 300 | D118: 1 | E118: 264 | F118: 264
A119: 117 | B119: ccok T-植物原液敏感肌洗发乳（油屑敏感易过敏适用） 1000ml | C119: 300 | D119: 1 | E119: 264 | F119: 264
A120: 118 | B120: ccok C-植物原液蛋白修复护发乳 1000ml | C120: 300 | D120: 1 | E120: 264 | F120: 264
A121: 119 | B121: ccok B-植物原液蛋白修复发膜 1000ml | C121: 450 | D121: 1 | E121: 396 | F121: 396
A122: 120 | B122: SK7护发素 750ml | C122: 128 | D122: 1 | E122: 113 | F122: 113
A123: 121 | B123: 歌秀染后锁色护理胶 450ml | C123: 98 | D123: 1 | E123: 86 | F123: 86
A124: 122 | B124: 歌秀LPP（水解蛋白）1000ml | C124: 180 | D124: 1 | E124: 158 | F124: 158
A125: 123 | B125: 歌秀染膏100ml | C125: 33 | D125: 1 | E125: 29 | F125: 29
A126: 124 | B126: 歌秀双氧奶1000ml | C126: 40 | D126: 1 | E126: 35 | F126: 35
A127: 125 | B127: 拉宝丽造型泡泡180ml | C127: 58 | D127: 1 | E127: 51 | F127: 51
A128: 126 | B128: 歌秀水玲珑护发素800ml | C128: 96 | D128: 1 | E128: 84 | F128: 84
A129: 127 | B129: 歌旎 润泽滋养喷雾120ml | C129: 42 | D129: 1 | E129: 37 | F129: 37
A130: 128 | B130: 赫柏柏萃发干奢养修护乳480ml | C130: 85 | D130: 1 | E130: 75 | F130: 75
A131: 129 | B131: 赫柏凝护胶原烫发伴侣20ml | C131: 36 | D131: 1 | E131: 32 | F131: 32
A132: 130 | B132: 赫柏奇焕光感染后色魔20ml | C132: 36 | D132: 1 | E132: =C132*0.88 -> 32 | F132: =E132 -> 32
A133: 131 | B133: 阿丽德蚕丝保湿釉料300ml | C133: 45 | D133: 1 | E133: 40 | F133: 40
A134: 132 | B134: 阿丽德植物蛋白柔顺乳300ml | C134: 45 | D134: 1 | E134: 40 | F134: 40
A135: 133 | B135: 阿丽德保湿柔顺乳300ml | C135: 64 | D135: 1 | E135: 56 | F135: 56
A136: 134 | B136: 阿丽德光泽保湿乳液 300ml | C136: 58 | D136: 1 | E136: 51 | F136: 51
A137: 135 | B137: 玫丽丝润色果酱500ml | C137: 109 | D137: 1 | E137: 96 | F137: 96
A138: 136 | B138: 参本源洗发露400ml | C138: 98 | D138: 1 | E138: 86 | F138: 86
A139: 137 | B139: 参本源护发乳400ml | C139: 98 | D139: 1 | E139: 86 | F139: 86
A140: 138 | B140: 老姜王姜疗热能头皮按摩膏1000ml | C140: 80 | D140: 1 | E140: 70 | F140: 70
A141: 139 | B141: 至尚 陶瓷烫 500ml | C141: 95 | D141: 1 | E141: 84 | F141: 84
A142: 140 | B142: 至尚 中和剂 (适合任何发质）1L | C142: 95 | D142: 1 | E142: 84 | F142: 84
A143: 141 | B143: 胶原 蛋白一洗黑 450ml*2 | C143: 168 | D143: 1 | E143: 148 | F143: 148
A144: 142 | B144: 头发美容湿度感小黄油 150ML | C144: 45 | D144: 1 | E144: 40 | F144: 40
A145: 143 | B145: 仟草集洗发水1.8L | C145: 88 | D145: 1 | E145: 77 | F145: 77
A146: 144 | B146: 仟草集护发素1.8L | C146: 88 | D146: 1 | E146: 77 | F146: 77
A147: 145 | B147: 发泥100ml | C147: 30 | D147: 1 | E147: 26 | F147: 26
A148: 146 | B148: 一次性隔水袋 100 | C148: 25 | D148: 1 | E148: 22 | F148: 22
A149: 147 | B149: 一次性手套100 | C149: 13 | D149: 1 | E149: 11 | F149: 11
A150: 148 | B150: 棉签 | C150: 19 | D150: 1 | E150: 17 | F150: 17
A151: 149 | B151: 吹风机 | C151: 690 | D151: 1 | E151: 607 | F151: 607
A152: 150 | B152: 橡皮筋 | C152: 20 | D152: 1 | E152: 18 | F152: 18
A153: 151 | B153: 电推子 | C153: 630 | D153: 1 | E153: 554 | F153: 554
A154: 152 | B154: 定位夹 | C154: 25 | D154: 1 | E154: 22 | F154: 22
A155: 153 | B155: 烫发围布 | C155: 80 | D155: 1 | E155: 70 | F155: 70
A156: 154 | B156: 剪发围布 | C156: 80 | D156: 1 | E156: 70 | F156: 70
A157: 155 | B157: 冷热专用烫发纸 | C157: 10 | D157: 1 | E157: 9 | F157: 9
A158: 156 | B158: 围脖纸//护颈纸 | C158: 35 | D158: 1 | E158: 31 | F158: 31
A159: 157 | B159: 电棒 | C159: 560 | D159: 1 | E159: 493 | F159: 493
A160: 158 | B160: 夹板 | C160: 390 | D160: 1 | E160: 343 | F160: 343
A161: 159 | B161: 刀片 | C161: 10 | D161: 1 | E161: 9 | F161: 9
A162: 160 | B162: 发夹 | C162: 15 | D162: 1 | E162: 13 | F162: 13
A163: 161 | B163: 平剪 | C163: 630 | D163: 1 | E163: 554 | F163: 554
A164: 162 | B164: 牙剪 | C164: 630 | D164: 1 | E164: 554 | F164: 554
A165: 163 | B165: 卷发梳 | C165: 80 | D165: 1 | E165: 70 | F165: 70
A166: 164 | B166: 剪发梳 | C166: 65 | D166: 1 | E166: 57 | F166: 57
A167: 总计： | F167: =SUM(F3:F166) -> 39571
A168: 编制人： | B168: 审核人： | C168: 审核人：

Sheet Deleted Code (hidden)
A1: Old
A2: E1955400U | B2: Densifique shampoo 250ML | C2: 卡诗赋活洗发水250ML | D2: 145 | E2: 260 | F2: 3 | G2: =D2*F2 -> 435
A3: E1669600U | B3: KER MASQUE CURL IDEAL 500ML V935 | C3: 卡诗黛丝逸卷发膜 500ML | D3: 390 | F3: 1 | G3: =D3*F3 -> 390
A4: E1924700U | B4: AMINEXIL GL 42 | C4: 卡诗头皮健发防脱精华液 42*6ML | D4: 1260 | F4: 1 | G4: =D4*F4 -> 1,260
A5: E1924300U | B5: SPECIFIQUE MASQUE HYDRA-APAISANT 500ML | C5: 卡诗头皮清养基底膜500ML | D5: 390 | F5: 1 | G5: 390
A6: E2269600U | B6: K REF MASQ CHRO CX FINS 200ML | C6: 卡诗绚色恒护发膜（细发） 200ml | D6: 250 | E6: 420 | F6: 3 | G6: =D6*F6 -> 750
A7: E1486000U | B7: BAIN THERAPISTE 450ML | C7: 卡诗丝韧焕活洗发水 450ML | D7: 210 | E7: 380 | F7: 3 | G7: 210
A8: E0506500U1 | B8: Injection De Force Vita - Ciment 20ML | C8: 卡诗发丝强韧精华乳 20ML | D8: 50 | F8: 30 | G8: =D8*F8 -> 1,500
A9: E1742500U | B9: Lait Vital Irisome 200ML | C9: 卡诗滋养恒护蛋白护发乳 200ML | D9: 200 | E9: 340 | F9: 3 | G9: =D9*F9 -> 600
A10: E1101002U | B10: Le parfum en huile | C10: 卡诗黑钻凝时香氛修护油 120ML | D10: 340 | E10: 680 | G10: =F10*D10 -> 0
A11: E1938500U | B11: ELIXIR ULTIME HUILE LAV 250ML VF46 | C11: 卡诗新菁纯润泽洗发水 250ML | D11: 160 | E11: 280 | F11: 3 | G11: =D11*F11 -> 480
A12: E0755400U | B12: Kerastase Bain Riche Dermo-Calm 1000ML | C12: 卡诗头皮系列舒缓滋润洗发水 1000ML | D12: 325 | F12: 1 | G12: =D12*F12 -> 325
A13: E0492504U | B13: SP B DRM VITAL HTETOLER 1000ML | C13: 卡诗头皮系列舒缓丝盈洗发水 1000ML | D13: 325 | F13: 1 | G13: =D13*F13 -> 325
A14: E1922701U | B14: BAIN RICH DERMO CALM 250ML | C14: 卡诗头皮系列新舒缓丝盈洗发水 250ML | D14: 135 | E14: 240 | F14: 3 | G14: =D14*F14 -> 405
A15: E1376400U | B15: kerastase le bain revitalisant 1000ML | C15: 卡诗黑钻凝时洗发水 1000ML | D15: 520 | G15: =F15*D15 -> 0
A16: E0296103U | B16: Mask Force Architect 500ML | C16: 卡诗强韧修护发膜 500ML | D16: 390 | F16: 1 | G16: =F16*D16 -> 390
C17: 柔韧芯机系列
A18: E2678500U | B18: KS Resistance Bain Extentioniste 250ML | C18: 卡诗柔韧芯机洗发水 250ML | D18: 135 | E18: 240 | F18: 3 | G18: =D18*F18 -> 405
A19: E2680900U | B19: KS RES FOND EXTENTIO 200ML | C19: 卡诗柔韧芯机护发素 200ML | D19: 200 | E19: 340 | F19: 3 | G19: =D19*F19 -> 600
A20: E2683400U | B20: KS RES MASK EXTENTIO 200ML | C20: 卡诗柔韧芯机发膜 200ML | D20: 250 | E20: 420 | F20: 3 | G20: =D20*F20 -> 750
A21: E2755200U | B21: KER RESISTANCE SERUM EXTENTIONISTE 50ML | C21: 卡诗柔韧芯机精华液 50ML | D21: 190 | E21: 325 | F21: 3 | G21: =D21*F21 -> 570
C22: 柔韧芯机系列
A23: E2678700U | B23: KS Resistance Bain Extentioniste 1000ML | C23: 卡诗柔韧芯机洗发水 1000ML | D23: 325 | F23: 1 | G23: =D23*F23 -> 325
A24: E2681100U | B24: KS RES FOND EXTENTIO 200ML | C24: 卡诗柔韧芯机护发素 1000ML | D24: 480 | F24: 1 | G24: =D24*F24 -> 480
C25: 奥丽柔顺系列
A26: E0515500U | B26: OLEO-RELAX BATH 1000ML | C26: 卡诗奥丽柔顺洗发水1000ML | D26: 325 | F26: 1 | G26: =D26*F26 -> 325
A27: E1741600U | B27: OLEO-RELAX FLUIDE 125ML | C27: 卡诗奥丽柔滑液 125ML | D27: 170 | E27: 285 | F27: 3 | G27: =D27*F27 -> 510
C28: 菁纯(神仙金油)系列
A29: UF001192 | B29: K ELIX ULTIME CATAPLASME 500ML | C29: 卡诗24K金致护理金箔礼盒(2018新) | D29: 800 | F29: 1 | G29: =D29*F29 -> 800
C30: 臻黑密发系列
A31: E1719101U | B31: KER AMINEXIL BLACK 42x6ML | C31: 卡诗臻黑密发精华液 42x6ML | D31: 1360 | G31: =D31*F31 -> 0
A32: New
C33: 头皮深层能量洗
A34: E3017300U | B34: Kerastase Scrub Energisant 500ML | C34: 卡诗头皮系列海盐清爽洁净霜 500ML | D34: 450 | F34: 1 | G34: =D34*F34 -> 450
A35: E3017400U | B35: Kerastase Scrub Apaisant 500ML | C35: 卡诗头皮系列舒缓轻盈洁净霜 500ML | D35: 450 | F35: 1 | G35: =D35*F35 -> 450
A36: E3017500U | B36: Fusio-Scrub Huile Stimulante 50ML | C36: 卡诗头皮系列生姜焕活精萃油(配合卡诗头皮系列洁净霜使用) 50ML | D36: 420 | F36: 1 | G36: =D36*F36 -> 420
A37: E3017600U | B37: Fusio-Scrub Huile Rafraichissante 50ML | C37: 卡诗头皮系列薄荷沁凉精萃油(配合卡诗头皮系列洁净霜使用) 50ML | D37: 420 | F37: 1 | G37: =D37*F37 -> 420
A38: E3017700U | B38: Fusio-Scrub Huile Relaxante 50ML | C38: 卡诗头皮系列檀香木舒缓精萃油(配合卡诗头皮系列洁净霜使用) 50ML | D38: 420 | F38: 1 | G38: =D38*F38 -> 420
C39: 菁纯亮泽系列
A40: E2689700U | C40: 卡诗菁纯亮泽经典香氛护发油 100ML | D40: 210 | F40: 3 | G40: =D40*F40 -> 630
A41: E2727900U | C41: 卡诗菁纯亮泽玫瑰香氛护发油 100ML | D41: 210 | F41: 3 | G41: 630
A42: E2689100U | C42: 卡诗菁纯亮泽轻润喷雾油 100ML(暂定) | D42: 210 | F42: 3 | G42: 630
A43: E2691700U | C43: 卡诗菁纯亮泽洗发水 250ML | D43: 160 | F43: 3 | G43: 480
A44: E2692500U | C44: 卡诗菁纯亮泽发膜 200ML | D44: 320 | F44: 3 | G44: 960
A45: E2691900U | C45: 卡诗菁纯亮泽洗发水 1000ML | D45: 420 | F45: 1 | G45: 420
B46: CHRONOLOGISTE | C46: 黑钻凝时系列
A47: E2007000U | B47: KS le soin-gommage renovateur 200ML | C47: 卡诗黑钻凝时净透凝露 200ML | D47: 190 | G47: =F47*D47 -> 0
A48: E1924200U | B48: SPECIFIQUE MASQUE HYDRA-APAISANT 200ML | C48: 卡诗头皮清养基底膜200ML | D48: 250 | E48: 420 | F48: 3 | G48: 250
C49: 耀光凝色系列
A50: E2920100U | B50: K BLOND BAIN LUMIERE 250ML | C50: 卡诗耀光凝色晶透洗发水 250ML | D50: 135 | E50: 240 | F50: 3 | G50: =D50*F50 -> 405
A51: E2922000U | B51: K BLOND FLUIDE MIRACLE 250ML | C51: 卡诗耀光凝色护发素 250ML | D51: 170 | E51: 290 | F51: 3 | G51: 510
A52: E2922600U | B52: K BLOND CICAPLASME 150ML | C52: 卡诗耀光凝色防护精华乳 150ML | D52: 143 | E52: =D52*2 -> 286 | F52: 3 | G52: 429
A53: E2920500U | B53: K BLOND BAIN LUMIERE 1L VA21 | C53: 卡诗耀光凝色晶透洗发水 1000ML | D53: 325 | E53: 650 | F53: 1 | G53: 325
A54: E2922200U | B54: K BLOND FLUIDE MIRACLE 1000ML | C54: 卡诗耀光凝色护发素 1000ML | D54: 480 | E54: 960 | F54: 1 | G54: 480
A55: E2922900U | B55: FUSIO-DOSE Booster Cicafibre 120ML | C55: 卡诗凝色精粹液(配合卡诗强韧精华液使用) 120ML | D55: 150 | E55: 300 | F55: 1 | G55: 150
A56: E3351000U1 | B56: K BLOND CONCENTRE 12ML | C56: 卡诗凝色精华液12ML | D56: 55 | E56: 110 | F56: 10 | G56: 550
A57: E0845902U | B57: NUT MASQUINTENS irisome 500ML | C57: 卡诗滋养润护发膜（粗发） 500ML | D57: 390 | E57: 780
C58: 丝韧焕活系列
A59: E1928400U | B59: KERASTASE BAIN THERAPISTE 250ML | C59: 卡诗丝韧焕活洗发水 250ML | D59: 145 | E59: 260 | F59: 3 | G59: =D59*F59 -> 435
A60: E0845400U | B60: Masquintense Irisome (FINE) 500ML | C60: 卡诗滋养润护发膜（细发）500ML | D60: 390 | F60: 1 | G60: =D60*F60 -> 390
